fUST/lending_fUST_20240201
["ID","MTS","AMOUNT","RATE_DAILY","PERIOD"]
[313120799,1706773839247,-705.92,0.0002038,2]
[313120800,1706773839257,-154.8331838,0.00020548,2]
[313120801,1706773839266,-307.6767697,0.00020548,2]
[313120802,1706773839277,-500.0,0.00020653,2]
[313120803,1706773839287,-500.0,0.00020653,2]
[313120804,1706773839297,-1054.02,0.00020653,2]
[313120805,1706773839308,-500.0,0.00020653,2]
[313120806,1706773839317,-500.0,0.00020653,2]
[313120807,1706773839326,-500.0,0.00020654,2]
[313120808,1706773839336,-500.0,0.00020654,2]
[313120809,1706773839345,-500.0,0.00020654,2]
[313120810,1706773839354,-705.92,0.00020654,2]
[313120811,1706773839365,-500.0,0.00020927,2]
[313120812,1706773839375,-500.0,0.00020927,2]
[313120813,1706773839497,-1054.02,0.00020927,2]
[313120814,1706773839526,-500.0,0.00020927,2]
[313120815,1706773839535,-500.0,0.00020927,2]
[313120816,1706773839543,-575.23925752,0.00020928,2]
[313120817,1706773839553,-500.0,0.00020928,2]
[313120818,1706773839562,-500.0,0.00020928,2]
[313120819,1706773839571,-705.92,0.00020928,2]
[313120820,1706773839580,-155.01550155,0.0002094,4]
[313120821,1706773839590,-500.0,0.00021201,2]
[313120822,1706773839599,-500.0,0.00021201,2]
[313120823,1706773839608,-1054.02,0.00021201,2]
[313120824,1706773839617,-500.0,0.00021201,2]
[313120825,1706773839626,-500.0,0.00021201,2]
[313120826,1706773839635,-500.0,0.00021202,2]
[313120827,1706773839643,-500.0,0.00021202,2]
[313120828,1706773839652,-705.92,0.00021202,2]
[313120829,1706773839661,-1673.1355645,0.00021333,2]
[313120830,1706773839670,-501.61812281,0.00021334,5]
[313120832,1706773839679,-265.3177137,0.00021334,2]
[313120834,1706773839689,-500.0,0.00021334,2]
[313120836,1706773839698,-500.0,0.00021334,2]
[313120838,1706773839707,-509.03407911,0.00021334,2]
[313120840,1706773839716,-500.0,0.00021334,2]
[313120842,1706773839724,-500.0,0.00021334,2]
[313120843,1706773839733,-500.0,0.00021334,2]
[313120845,1706773839745,-500.0,0.00021334,2]
[313120847,1706773839755,-1930.80522187,0.00021336,2]
[313120848,1706773839764,-1061.94287202,0.00021336,2]
[313120849,1706773839773,-3113.86958387,0.00021336,2]
[313120850,1706773839782,-16316.13473393,0.00021336,2]
[313120851,1706773839790,-500.0,0.00021475,2]
[313120852,1706773839799,-500.0,0.00021475,2]
[313120853,1706773839808,-1054.02,0.00021475,2]
[313120854,1706773839817,-500.0,0.00021475,2]
[313120855,1706773839827,-500.0,0.00021475,2]
[313120856,1706773839835,-500.0,0.00021476,2]
[313120857,1706773839843,-500.0,0.00021476,2]
[313120858,1706773839852,-705.92,0.00021476,2]
[313120859,1706773839861,-500.0,0.00021608,2]
[313120860,1706773839870,-500.0,0.00021608,2]
[313120861,1706773839880,-500.0,0.00021608,2]
[313120862,1706773839890,-504.68941615,0.00021608,2]
[313120863,1706773839900,-505.54337339,0.00021608,2]
[313120864,1706773839909,-500.0,0.00021608,2]
[313120865,1706773839919,-500.0,0.00021749,2]
[313120866,1706773839928,-500.0,0.00021749,2]
[313120867,1706773839937,-1054.02,0.00021749,2]
[313120868,1706773839946,-500.0,0.00021749,2]
[313120869,1706773839955,-500.0,0.00021749,2]
[313120870,1706773839964,-500.0,0.0002175,2]
[313120871,1706773839974,-500.0,0.0002175,2]
[313120872,1706773839984,-705.92,0.0002175,2]
[313120873,1706773839994,-932.35604574,0.000218,2]
[313120874,1706773840004,-500.0,0.00021882,2]
[313120875,1706773840013,-500.0,0.00021882,2]
[313120876,1706773840022,-166.666666,0.00021918,2]
[313120877,1706773840033,-2037.9288444,0.00022,2]
[313120878,1706773840044,-327.87136116,0.00022,2]
[313120879,1706773840054,-426.74292046,0.00022,2]
[313120880,1706773840064,-3975.94482734,0.00022,2]
[313120881,1706773840074,-500.0,0.00022023,2]
[313120882,1706773840085,-500.0,0.00022023,2]
[313120883,1706773840094,-1054.02,0.00022023,2]
[313120884,1706773840103,-500.0,0.00022023,2]
[313120885,1706773840112,-500.0,0.00022023,2]
[313120886,1706773840121,-500.0,0.00022024,2]
[313120887,1706773840130,-500.0,0.00022024,2]
[313120888,1706773840139,-705.92,0.00022024,2]
[313120889,1706773840148,-500.0,0.00022156,2]
[313120890,1706773840157,-500.0,0.00022156,2]
[313120891,1706773840166,-500.0,0.00022297,2]
[313120892,1706773840175,-500.0,0.00022297,2]
[313120893,1706773840183,-1054.02,0.00022297,2]
[313120894,1706773840192,-500.0,0.00022297,2]
[313120895,1706773840202,-500.0,0.00022297,2]
[313120896,1706773840211,-500.0,0.00022298,2]
[313120897,1706773840220,-500.0,0.00022298,2]
[313120898,1706773840229,-705.92,0.00022298,2]
[313120899,1706773840238,-550.66788078,0.0002243,2]
[313120900,1706773840247,-500.0,0.0002243,2]
[313120901,1706773840256,-166.666666,0.00022431,2]
[313120902,1706773840265,-500.0,0.00022571,2]
[313120903,1706773840273,-415.17318522,0.00022571,2]
[313120904,1706773840282,-1054.02,0.00022571,2]
[313120905,1706773840291,-500.0,0.00022571,2]
[313120906,1706773840301,-500.0,0.00022571,2]
[313120907,1706773840309,-500.0,0.00022572,2]
[313120908,1706773840318,-500.0,0.00022572,2]
[313120909,1706773840327,-705.92,0.00022572,2]
[313120910,1706773840336,-500.0,0.00022704,2]
[313120911,1706773840345,-307.4236453,0.0002274,2]
[313120912,1706773840354,-310.5348743,0.0002274,2]
[313120913,1706773840363,-500.0,0.00022845,2]
[313120914,1706773840372,-1054.02,0.00022845,2]
[313120915,1706773840381,-500.0,0.00022845,2]
[313120916,1706773840390,-500.0,0.00022845,2]
[313120917,1706773840399,-500.0,0.00022846,2]
[313120918,1706773840408,-500.0,0.00022846,2]
[313120919,1706773840417,-705.92,0.00022846,2]
[313120920,1706773840426,-2086.346911,0.000229,2]
[313120921,1706773840435,-2086.346911,0.000229,2]
[313120922,1706773840444,-248.687395,0.000229,2]
[313120923,1706773840454,-166.666666,0.00022944,2]
[313120924,1706773840463,-500.0,0.00022978,2]
[313120925,1706773840472,-19111.12484416,0.00023,2]
[313120926,1706773840483,-1261.69149652,0.00023,2]
[313120927,1706773840494,-333.24693655,0.00023,2]
[313120928,1706773840503,-249.961883,0.00023,2]
[313120929,1706773840512,-153.948692,0.00023,2]
[313120930,1706773840522,-151.0,0.00023,2]
[313120931,1706773840531,-151.0,0.00023,2]
[313120932,1706773840540,-151.0,0.00023,2]
[313120933,1706773840549,-151.0,0.00023,2]
[313120934,1706773840558,-500.0,0.00023119,2]
[313120935,1706773840566,-1054.02,0.00023119,2]
[313120936,1706773840576,-500.0,0.00023119,2]
[313120937,1706773840584,-500.0,0.00023119,2]
[313120938,1706773840594,-500.0,0.0002312,2]
[313120939,1706773840603,-500.0,0.0002312,2]
[313120940,1706773840612,-705.92,0.0002312,2]
[313120941,1706773840621,-500.0,0.00023252,2]
[313120942,1706773840630,-200.75963459,0.00023268,2]
[313120943,1706773840639,-1590.42438878,0.00023268,2]
[313120944,1706773840649,-500.0,0.00023393,2]
[313120945,1706773840658,-1054.02,0.00023393,2]
[313120946,1706773840667,-375.22934236,0.00023393,2]
[313120947,1706773840676,-500.0,0.00023393,2]
[313120948,1706773840685,-2086.346911,0.00023394,2]
[313120949,1706773840694,-2086.346911,0.00023394,2]
[313120950,1706773840704,-500.0,0.00023394,2]
[313120951,1706773840714,-500.0,0.00023394,2]
[313120952,1706773840724,-705.92,0.00023394,2]
[313120953,1706773840734,-166.666666,0.00023456,2]
[313120954,1706773840745,-500.0,0.00023526,2]
[313120955,1706773840755,-208.3983418,0.00023546,2]
[313120956,1706773840765,-306.0,0.00023562,2]
[313120957,1706773840774,-500.0,0.00023667,2]
[313120958,1706773840784,-1054.02,0.00023667,2]
[313120959,1706773840794,-500.0,0.00023667,2]
[313120960,1706773840803,-500.0,0.00023668,2]
[313120961,1706773840812,-500.0,0.00023668,2]
[313120962,1706773840822,-705.92,0.00023668,2]
[313120963,1706773840831,-500.0,0.000238,2]
[313120964,1706773840839,-660.06552576,0.00023826,2]
[313120965,1706773840848,-990.94239568,0.000239,2]
[313120966,1706773840858,-500.0,0.00023941,2]
[313120967,1706773840867,-1054.02,0.00023941,2]
[313120968,1706773840877,-500.0,0.00023941,2]
[313120969,1706773840887,-500.0,0.00023942,2]
[313120970,1706773840896,-500.0,0.00023942,2]
[313120971,1706773840905,-705.92,0.00023942,2]
[313120972,1706773840916,-166.666666,0.00023969,2]
[313120973,1706773840925,-4021.82810121,0.00024,2]
[313120974,1706773840934,-500.0,0.00024074,2]
[313120975,1706773840944,-500.0,0.00024215,2]
[313120976,1706773840952,-1054.02,0.00024215,2]
[313120977,1706773840962,-500.0,0.00024215,2]
[313120978,1706773840970,-500.0,0.00024216,2]
[313120979,1706773840979,-500.0,0.00024216,2]
[313120980,1706773840988,-705.92,0.00024216,2]
[313120981,1706773840997,-160.09709862,0.000243,2]
[313120982,1706773841006,-151.0,0.00024348,2]
[313120983,1706773841014,-151.0,0.00024349,2]
[313120984,1706773841024,-151.0,0.00024349,2]
[313120985,1706773841033,-151.0,0.00024349,2]
[313120986,1706773841041,-166.666666,0.00024482,2]
[313120987,1706773841050,-500.0,0.00024489,2]
[313120988,1706773841059,-1054.02,0.00024489,2]
[313120989,1706773841068,-500.0,0.00024489,2]
[313120990,1706773841077,-500.0,0.0002449,2]
[313120991,1706773841086,-500.0,0.0002449,2]
[313120992,1706773841095,-705.92,0.0002449,2]
[313120993,1706773841104,-280.0,0.00024658,2]
[313120994,1706773841113,-500.0,0.00024763,2]
[313120995,1706773841121,-1054.02,0.00024763,2]
[313120996,1706773841130,-500.0,0.00024763,2]
[313120997,1706773841139,-500.0,0.00024764,2]
[313120998,1706773841148,-500.0,0.00024764,2]
[313120999,1706773841156,-705.92,0.00024764,2]
[313121000,1706773841165,-150.672,0.00024859,2]
[313121001,1706773841174,-151.0,0.00024866,2]
[313121002,1706773841183,-500.0,0.00024898,2]
[313121003,1706773841192,-500.0,0.00024898,2]
[313121004,1706773841200,-500.0,0.00024898,2]
[313121005,1706773841209,-500.0,0.00024898,2]
[313121006,1706773841218,-500.0,0.00024898,2]
[313121007,1706773841226,-500.0,0.00024898,2]
[313121008,1706773841235,-500.0,0.00024898,2]
[313121009,1706773841245,-500.0,0.00024898,2]
[313121010,1706773841254,-500.0,0.00024898,2]
[313121011,1706773841262,-500.0,0.00024898,2]
[313121012,1706773841271,-500.0,0.00024898,2]
[313121013,1706773841280,-500.0,0.00024898,2]
[313121014,1706773841289,-171.39595961,0.00024898,2]
[313121015,1706773841298,-214.11458046,0.00024898,2]
[313121016,1706773841307,-500.0,0.00024898,2]
[313121017,1706773841315,-287.3034547,0.00024898,2]
[313121018,1706773841324,-500.0,0.00024898,2]
[313121019,1706773841333,-500.0,0.00024898,2]
[313121020,1706773841342,-500.0,0.00024898,2]
[313121021,1706773841351,-500.0,0.00024898,2]
[313121022,1706773841361,-500.0,0.00024898,2]
[313121023,1706773841370,-500.0,0.00024898,2]
[313121024,1706773841379,-473.96714372,0.00024898,2]
[313121025,1706773841388,-500.0,0.00024898,2]
[313121026,1706773841397,-500.0,0.00024898,2]
[313121027,1706773841406,-500.0,0.00024898,2]
[313121028,1706773841415,-615.46639729,0.00024898,2]
[313121029,1706773841425,-500.0,0.00024898,2]
[313121030,1706773841434,-500.0,0.00024898,2]
[313121031,1706773841443,-500.0,0.00024898,2]
[313121032,1706773841454,-500.0,0.00024898,2]
[313121033,1706773841464,-500.0,0.00024898,2]
[313121034,1706773841474,-500.0,0.00024898,2]
[313121035,1706773841483,-500.0,0.00024898,2]
[313121036,1706773841493,-500.0,0.00024898,2]
[313121037,1706773841502,-500.0,0.00024898,2]
[313121038,1706773841512,-500.0,0.00024898,2]
[313121039,1706773841521,-500.0,0.00024898,2]
[313121040,1706773841531,-500.0,0.00024898,2]
[313121041,1706773841539,-500.0,0.00024898,2]
[313121042,1706773841548,-500.0,0.00024898,2]
[313121043,1706773841558,-500.0,0.00024898,2]
[313121044,1706773841567,-500.0,0.00024898,2]
[313121045,1706773841576,-500.0,0.00024898,2]
[313121046,1706773841585,-500.0,0.00024898,2]
[313121047,1706773841593,-522.55434682,0.00024898,2]
[313121048,1706773841602,-500.0,0.00024898,2]
[313121049,1706773841612,-500.0,0.00024898,2]
[313121050,1706773841620,-500.0,0.00024898,2]
[313121051,1706773841630,-500.0,0.00024898,2]
[313121052,1706773841639,-363.56926825,0.00024898,2]
[313121053,1706773841647,-500.0,0.00024898,2]
[313121054,1706773841656,-500.0,0.00024898,2]
[313121055,1706773841665,-500.0,0.00024898,2]
[313121056,1706773841674,-2086.346911,0.00024899,2]
[313121057,1706773841683,-2086.346911,0.00024899,2]
[313121058,1706773841692,-15827.2475093,0.000249,2]
[313121059,1706773841708,-952.86987331,0.000249,2]
[313121060,1706773841719,-5523.66174645,0.000249,2]
[313121124,1706773844203,-7173.96,0.00019823,3]
[313121125,1706773844213,-302.26519309,0.00019831,2]
[313121126,1706773844222,-28978.20202827,0.000249,2]
[313121262,1706773848217,-404.91796637,0.000249,2]
[313121375,1706774036022,300.0,0.0003,120]
[313121376,1706774091052,380.0,0.00015,2]
[313121377,1706774150550,155.01550155,0.00015,2]
[313121378,1706774152282,236.09951915,0.00015,2]
[313121379,1706774153853,1111.36041845,0.00015,2]
[313121380,1706774153992,343.67151097,0.00015,2]
[313121381,1706774154093,155.01550155,0.00015,2]
[313121382,1706774154346,1012.27629002,0.00015,2]
[313121383,1706774155298,683.46496987,0.00015,2]
[313121384,1706774159499,621.78202823,0.00015,2]
[313121385,1706774159587,155.01550155,0.00015,2]
[313121386,1706774164534,155.98866061,0.00015,2]
[313121388,1706774167749,1099.8850303,0.00015,2]
[313121389,1706774167995,343.67151097,0.00015,2]
[313121390,1706774170397,236.09951915,0.00015,2]
[313121391,1706774172093,172.52061661,0.00015,2]
[313121392,1706774172173,1012.27629002,0.00015,2]
[313121393,1706774175451,155.01550155,0.00015,2]
[313121394,1706774177311,683.46496987,0.00015,2]
[313121395,1706774179504,621.78202823,0.00015,2]
[313121396,1706774185993,343.67151097,0.00015,2]
[313121397,1706774186296,232.63468133,0.00015,2]
[313121398,1706774193465,192.29398003,0.00015,2]
[313121399,1706774194213,1012.27629002,0.00015,2]
[313121400,1706774195317,683.46496987,0.00015,2]
[313121403,1706774205511,239.73661469,0.00015,2]
[313121404,1706774205994,343.67151097,0.00015,2]
[313121405,1706774211450,155.01550155,0.00015,2]
[313121406,1706774212196,618.47228857,0.00015,2]
[313121407,1706774215399,683.46496987,0.00015,2]
[313121408,1706774223996,343.67151097,0.00015,2]
[313121409,1706774233484,165.03965429,0.00015,2]
[313121410,1706774233555,683.46496987,0.00015,2]
[313121411,1706774241995,291.40642938,0.00015,2]
[313121412,1706774251321,683.46496987,0.00015,2]
[313121413,1706774273330,683.46496987,0.00015,2]
[313121414,1706774287448,683.46496987,0.00015,2]
[313121415,1706774309343,683.46496987,0.00015,2]
[313121416,1706774323328,683.46496987,0.00015,2]
[313121417,1706774343335,683.46496987,0.00015,2]
[313121418,1706774363340,683.46496987,0.00015,2]
[313121421,1706774379345,683.46496987,0.00015,2]
[313121422,1706774397339,290.04395372,0.00015,2]
[313121424,1706774626899,21745.3392418,0.0003,120]
[313121467,1706775032455,-155.01550155,0.00019149,2]
[313121469,1706775032464,-717.29668093,0.0001915,2]
[313121471,1706775032473,-500.0,0.00019831,2]
[313121473,1706775032483,-231.06485427,0.00019833,2]
[313121475,1706775032492,-2796.66,0.0002,2]
[313121477,1706775032502,-1200.31274669,0.0002,2]
[313121479,1706775032512,-5460.4512879,0.00020722,2]
[313121481,1706775032521,-824.88024795,0.00021336,2]
[313121483,1706775032530,-166.666666,0.00021918,2]
[313121485,1706775032539,-20000.0,0.00021999,2]
[313121487,1706775032548,-503.92603728,0.00021999,2]
[313121489,1706775032557,-500.0,0.00021999,2]
[313121491,1706775032566,-500.0,0.00021999,2]
[313121493,1706775032575,-2037.9288444,0.00022,2]
[313121495,1706775032585,-327.87136116,0.00022,2]
[313121497,1706775032593,-426.74292046,0.0002227,2]
[313121498,1706775032603,-3975.94482734,0.00022272,2]
[313121499,1706775032612,-500.0,0.00022273,2]
[313121500,1706775032621,-166.666666,0.00022431,2]
[313121501,1706775032630,-500.0,0.00022547,2]
[313121502,1706775032639,-330.3141319,0.00022799,2]
[313121503,1706775032648,-500.0,0.00022821,2]
[313121504,1706775032657,-166.666666,0.00022944,2]
[313121505,1706775032666,-6390.35,0.0002299,3]
[313121506,1706775032675,-500.0,0.00022998,2]
[313121507,1706775032684,-500.0,0.00022998,2]
[313121508,1706775032693,-500.0,0.00022998,2]
[313121509,1706775032703,-500.0,0.00022998,2]
[313121510,1706775032712,-500.0,0.00022999,2]
[313121511,1706775032721,-500.0,0.00022999,2]
[313121512,1706775032730,-504.59476754,0.00022999,2]
[313121513,1706775032739,-500.0,0.00022999,2]
[313121514,1706775032748,-500.0,0.00022999,2]
[313121515,1706775032757,-500.0,0.00022999,2]
[313121516,1706775032766,-500.0,0.00022999,2]
[313121517,1706775032775,-498.96253921,0.00022999,2]
[313121519,1706775032894,-500.0,0.00022999,2]
[313121520,1706775032906,-2421.67273805,0.00023,2]
[313121521,1706775032915,-7668.42,0.00023065,3]
[313121522,1706775032924,-1778.63010705,0.00023075,3]
[313121673,1706775044230,-500.0,0.00022999,2]
[313121675,1706775044239,-3485.87001312,0.00023084,2]
[313121681,1706775044286,-252.30064042,0.00023084,2]
[313121701,1706775044463,-15372.95419062,0.00023084,2]
[313121703,1706775044473,-500.0,0.00023095,2]
[313121705,1706775044482,-500.0,0.00023272,2]
[313121707,1706775044491,-500.0,0.00023272,2]
[313121709,1706775044501,-500.0,0.00023273,2]
[313121711,1706775044510,-500.0,0.00023273,2]
[313121713,1706775044519,-264.67416883,0.00023273,2]
[313121715,1706775044528,-500.0,0.00023273,2]
[313121716,1706775044537,-500.0,0.00023273,2]
[313121718,1706775044546,-500.0,0.00023369,2]
[313121720,1706775044555,-166.666666,0.00023456,2]
[313121722,1706775044564,-500.0,0.00023546,2]
[313121725,1706775044574,-500.0,0.00023547,2]
[313121727,1706775044583,-500.0,0.00023547,2]
[313121729,1706775044592,-299.78512516,0.00023547,2]
[313122814,1706776234690,-717.29668093,0.00020981,2]
[313122815,1706776234699,-823.83817553,0.00020982,2]
[313122816,1706776234708,-371.72007513,0.00020984,2]
[313122817,1706776234716,-2434.43479631,0.00021336,2]
[313122818,1706776234748,-861.94535504,0.00021336,2]
[313122973,1706776239510,-1315.62946496,0.00021336,2]
[313122974,1706776239522,-788.15764635,0.00021336,2]
[313122975,1706776239533,-1571.92043813,0.00021336,2]
[313122976,1706776239545,-2224.91149128,0.00021336,2]
[313122977,1706776239555,-5086.95586079,0.00021336,2]
[313122978,1706776239564,-206.22006199,0.00021336,2]
[313122979,1706776239573,-170.802432,0.00021358,2]
[313122980,1706776239582,-89.60513928,0.00021918,2]
[313123379,1706776243723,-77.06152672,0.00021918,2]
[313123381,1706776243732,-2037.9288444,0.00022,2]
[313123383,1706776243741,-2470.0966254,0.00022,2]
[313123385,1706776243753,-3575.85750908,0.00022,2]
[313124015,1706777431855,-155.01550155,0.00019899,3]
[313124017,1706777431865,-500.0,0.00019899,2]
[313124019,1706777431875,-578.12751531,0.000199,2]
[313124021,1706777431884,-169.58374,0.00020539,2]
[313124023,1706777431895,-12257.46782201,0.00021336,2]
[313124026,1706777431907,-3154.77923631,0.00021336,2]
[313124028,1706777431916,-247.52022738,0.00021336,2]
[313124030,1706777431934,-538.51743645,0.00021336,2]
[313124032,1706777431946,-463.12373391,0.00021336,2]
[313124107,1706777437898,-518.86274928,0.00021336,2]
[313124109,1706777437910,-1015.27824006,0.00021336,2]
[313124111,1706777437919,-1154.60511314,0.00021336,2]
[313124113,1706777437930,-166.666666,0.00021918,2]
[313124115,1706777437940,-258.42506653,0.00021989,2]
[313124123,1706777438006,-241.57493347,0.00021989,2]
[313124125,1706777438015,-9679.92,0.00021989,3]
[313124127,1706777438024,-11615.91,0.0002199,3]
[313124129,1706777438033,-8066.6,0.0002199,3]
[313124131,1706777438042,-500.0,0.00021997,2]
[313124133,1706777438051,-500.0,0.00021998,2]
[313124135,1706777438060,-500.0,0.00021998,2]
[313124137,1706777438069,-500.0,0.00021998,2]
[313124139,1706777438079,-500.0,0.00021998,2]
[313124141,1706777438087,-500.0,0.00021998,2]
[313124143,1706777438097,-500.0,0.00021998,2]
[313124145,1706777438106,-500.0,0.00021998,2]
[313124147,1706777438115,-867.23,0.00021998,2]
[313124149,1706777438124,-500.0,0.00021998,2]
[313124151,1706777438133,-500.0,0.00021998,2]
[313124153,1706777438142,-500.0,0.00021998,2]
[313124155,1706777438151,-500.0,0.00021998,2]
[313124156,1706777438159,-500.0,0.00021998,2]
[313124158,1706777438168,-500.0,0.00021998,2]
[313124160,1706777438178,-500.0,0.00021998,2]
[313124163,1706777438189,-500.0,0.00021998,2]
[313124165,1706777438201,-500.0,0.00021998,2]
[313124167,1706777438212,-500.0,0.00021998,2]
[313124170,1706777438224,-500.0,0.00021998,2]
[313124172,1706777438237,-500.0,0.00021998,2]
[313124174,1706777438248,-506.58823507,0.00021998,2]
[313124176,1706777438260,-500.0,0.00021998,2]
[313124178,1706777438271,-500.0,0.00021998,2]
[313124181,1706777438281,-500.0,0.00021998,2]
[313124183,1706777438290,-500.0,0.00021998,2]
[313124185,1706777438300,-523.83,0.00021998,2]
[313124186,1706777438311,-20000.0,0.00021998,2]
[313124187,1706777438324,-4650.83645046,0.00021999,2]
[313124188,1706777438336,-2037.9288444,0.00022,2]
[313124189,1706777438347,-300.0,0.00022,2]
[313124190,1706777438358,-6138.13119635,0.00022,2]
[313124191,1706777438369,-1829.31848174,0.00022,2]
[313124192,1706777438380,-2088.24989888,0.00022,2]
[313124193,1706777438391,-293.96652096,0.00022,4]
[313124194,1706777438402,-1012.00745329,0.00022,2]
[313124195,1706777438414,-326.04786116,0.00022,2]
[313124196,1706777438424,-426.74292046,0.00022,2]
[313124197,1706777438435,-3975.94482734,0.00022268,2]
[313124198,1706777438445,-500.0,0.00022269,2]
[313124199,1706777438457,-500.0,0.00022269,2]
[313124200,1706777438469,-500.0,0.00022269,2]
[313124201,1706777438480,-455.2446632,0.00022269,2]
[313124202,1706777438490,-504.68941615,0.00022269,2]
[313124204,1706777438501,-505.54337339,0.00022269,2]
[313124207,1706777438511,-500.0,0.00022269,2]
[313124209,1706777438522,-500.0,0.00022271,2]
[313124211,1706777438532,-453.0,0.00022272,2]
[313124213,1706777438542,-500.0,0.00022272,2]
[313124215,1706777438552,-867.23,0.00022272,2]
[313124217,1706777438562,-500.0,0.00022272,2]
[313124219,1706777438573,-500.0,0.00022272,2]
[313124221,1706777438584,-500.0,0.00022272,2]
[313124223,1706777438594,-500.0,0.00022272,2]
[313124225,1706777438605,-500.0,0.00022272,2]
[313124227,1706777438615,-500.0,0.00022272,2]
[313124229,1706777438626,-500.0,0.00022272,2]
[313124232,1706777438639,-500.0,0.00022272,2]
[313124234,1706777438649,-500.0,0.00022272,2]
[313124236,1706777438660,-523.83,0.00022272,2]
[313124238,1706777438671,-166.666666,0.00022431,2]
[313124240,1706777438681,-500.0,0.00022543,2]
[313124241,1706777438690,-500.0,0.00022543,2]
[313124243,1706777438700,-500.0,0.00022545,2]
[313124245,1706777438711,-867.23,0.00022546,2]
[313124247,1706777438720,-500.0,0.00022546,2]
[313124249,1706777438734,-433.20154933,0.00022546,2]
[313124278,1706777441119,-185.67845067,0.00022546,2]
[313124279,1706777441130,-500.0,0.00022546,2]
[313124280,1706777441141,-377.71992367,0.00022546,2]
[313124281,1706777441154,-122.28007633,0.00022546,2]
[313124282,1706777441165,-500.0,0.00022546,2]
[313124283,1706777441175,-500.0,0.00022546,2]
[313124284,1706777441186,-523.83,0.00022546,2]
[313124285,1706777441197,-500.0,0.00022817,2]
[313124286,1706777441207,-500.0,0.00022817,2]
[313124287,1706777441218,-500.0,0.00022819,2]
[313124288,1706777441229,-867.23,0.0002282,2]
[313124289,1706777441241,-500.0,0.0002282,2]
[313124290,1706777441252,-500.0,0.0002282,2]
[313124291,1706777441262,-500.0,0.0002282,2]
[313124292,1706777441274,-500.0,0.0002282,2]
[313124293,1706777441286,-500.0,0.0002282,2]
[313124294,1706777441297,-523.83,0.0002282,2]
[313124295,1706777441307,-222.82766287,0.000229,2]
[313124296,1706777441318,-166.666666,0.00022944,2]
[313124297,1706777441329,-14641.40215433,0.00023,2]
[313124544,1706777644035,6119.60444037,0.000125,2]
[313124545,1706777669757,1012.27629002,0.000125,2]
[313124546,1706777683755,1012.27629002,0.000125,2]
[313124547,1706777705746,1012.27629002,0.000125,2]
[313124548,1706777725752,1012.27629002,0.000125,2]
[313124549,1706777743746,1012.27629002,0.000125,2]
[313124550,1706777761765,1012.27629002,0.000125,2]
[313124552,1706777783752,1012.27629002,0.000125,2]
[313124553,1706777799762,1041.05851657,0.000125,2]
[313125236,1706778643176,-8170.84617493,0.00019796,2]
[313125261,1706778643738,-1450.63774145,0.00019796,2]
[313126030,1706779833597,-155.01395126,0.0001878,3]
[313126032,1706779833609,-1857.66500198,0.00018781,2]
[313126034,1706779833620,-1361.38745114,0.00018792,2]
[313126036,1706779833631,-1036.79538496,0.000189,2]
[313126038,1706779833644,-176.740816,0.00019027,2]
[313126040,1706779833653,-169.845061,0.00019178,2]
[313126042,1706779833663,-169.991463,0.00019178,2]